Workbook

Sheet Instruções
A1: http://authenticator.sapphirebusinesstech.com:8080/access/v1/validate
A2: 123456789
A3: contact@sapphirebusinesstech.com | F3: Any use for this file other than sample using and technical analysis without authorization is stricly prohibited and protected by copyright
F4: Qualquer uso desse arquivo sem autorização outro que uso de exemplo e análise técnica é extritamente proibida e protegida por direitos autorais.
A5: 200 | F5: Cualquier uso de este archivo sin autorización que no sea para fines de ejemplo o análisis técnico está estrictamente prohibido y está protegido por derechos de autor.
A7: =IF(A12="",0,TODAY()-A12) -> 0
C10: Menu | D10: Fornecedores | E10: Solicitações | F10: Propostas | G10: Cálculos | H10: Relatórios | I10: Instruções
C12: INSTRUÇÕES DE USO
C14: 1. OBJETIVO DA PLANILHA
C15: Esta planilha permite controlar processos de cotação e propostas recebidas de fornecedores.
C16: Você poderá registrar cotações, lançar propostas, comparar preços, prazos e condições comerciais,
C17: identificar o menor preço, medir a economia obtida e acompanhar o status de cada processo.
C19: 2. ORDEM CORRETA DE USO
C20: ① Cadastre os fornecedores na aba Fornecedores (nome, contato, categoria).
C21: ② Registre cada solicitação de cotação na aba Solicitações (item, quantidade, valor de referência).
C22: ③ Lance as propostas recebidas na aba Propostas (preço unitário, frete, prazo, condição de pagamento).
C23: ④ Marque a proposta vencedora no campo Selecionada = Sim.
C24: ⑤ Acompanhe os resultados nas abas Cálculos e Relatórios (atualização automática).
C26: 3. O QUE PREENCHER MANUALMENTE
C27: • Fornecedores: todos os campos (ID, Razão Social, Categoria, Contato, Status etc.).
C28: • Solicitações: ID_Cotacao, Data, Solicitante, Item, Quantidade, Unidade, Valor Referência, Status.
C29: • Propostas: ID_Registro, ID_Cotacao, Data Recebimento, Fornecedor, Preço Unitário, Frete, Custos, Prazo, Validade, Condição, Selecionada.
C31: 4. O QUE NÃO ALTERAR
C32: • Colunas com fórmula (fundo cinza claro) — não digite nelas. Elas são calculadas automaticamente.
C33: • Aba Cálculos — não edite. Ela consolida dados automaticamente.
C34: • Aba Relatórios — apenas para consulta. Não altere os valores.
C36: 5. REGRAS IMPORTANTES
C37: • Uma cotação pode ter várias propostas de fornecedores diferentes.
C38: • Apenas UMA proposta deve ser marcada como Selecionada = Sim por cotação.
C39: • Mantenha o cadastro de fornecedores padronizado (use os mesmos nomes na aba Propostas).
C40: • Campos de data devem estar no formato dd/mm/aaaa.
C41: • Campos de valor devem conter apenas números (sem R$ ou texto).
C43: 6. ERROS COMUNS
C44: • Digitar ID_Cotacao inexistente na aba Propostas → campos calculados ficarão em branco.
C45: • Marcar mais de uma proposta como vencedora (Selecionada = Sim) → alerta 'Verificar' nos Cálculos.
C46: • Não preencher Valor_Referencia na Solicitação → economia obtida não será calculada.
C47: • Preencher preço unitário errado com quantidade zerada → Valor_Itens será zero.
C49: 💡 Dica: use os botões na linha 4 para navegar entre as abas rapidamente!

Sheet Menu (hidden)
C4: Menu | D4: Fornecedores | E4: Solicitações | F4: Propostas | G4: Cálculos | H4: Relatórios | I4: Instruções
C6: CONTROLE DE PROPOSTAS E ORÇAMENTOS
C7: Painel de Acompanhamento Rápido
C9: Cotações Abertas | D9: Cotações Fechadas | E9: Propostas Recebidas | F9: Economia Obtida | G9: Fornecedores Ativos
C10: =COUNTIFS(tblCalcCotacoes[Status_Fechamento],"Em cotacao") -> 2 | D10: =COUNTIFS(tblCalcCotacoes[Status_Fechamento],"Fechada") -> 1 | E10: =COUNTA(tblPropostas[ID_Registro]) -> 6 | F10: =SUM(tblCalcCotacoes[Economia_Obtida]) -> R$ 2,300.00 | G10: =COUNTIFS(tblFornecedores[Status_Fornecedor],"Ativo") -> 3
C12: 📘 COMO COMEÇAR
C14: 1️⃣ | D14: Cadastre seus fornecedores na aba Fornecedores
C15: 2️⃣ | D15: Registre cada cotação na aba Solicitações
C16: 3️⃣ | D16: Lance as propostas recebidas na aba Propostas
C17: 4️⃣ | D17: Marque a proposta vencedora como Selecionada = Sim
C18: 5️⃣ | D18: Acompanhe tudo em Relatórios e nos indicadores acima
C20: ⚠️ Não edite as abas Cálculos e Relatórios — elas são alimentadas automaticamente.

Sheet Fornecedores (hidden)
C4: Menu | D4: Fornecedores | E4: Solicitações | F4: Propostas | G4: Cálculos | H4: Relatórios | I4: Instruções
C6: CADASTRO DE FORNECEDORES
C7: ID_Fornecedor | D7: Razao_Social | E7: Nome_Fantasia | F7: Categoria_Principal | G7: Cidade | H7: UF | I7: Contato | J7: Telefone | K7: Email | L7: Prazo_Medio_Dias | M7: Status_Fornecedor | N7: Observacoes
C8: FOR001 | D8: ABC Materiais Ltda | E8: ABC Materiais | F8: Material | G8: São Paulo | H8: SP | I8: João Silva | J8: (11) 99999-0001 | K8: joao@abc.com.br | L8: 15 | M8: Ativo
C9: FOR002 | D9: XYZ Serviços S.A. | E9: XYZ Serviços | F9: Serviço | G9: Curitiba | H9: PR | I9: Maria Souza | J9: (41) 98888-0002 | K9: maria@xyz.com.br | L9: 10 | M9: Ativo
C10: FOR003 | D10: Delta Logística Ltda | E10: Delta Log | F10: Frete | G10: Rio de Janeiro | H10: RJ | I10: Carlos Lima | J10: (21) 97777-0003 | K10: carlos@delta.com.br | L10: 7 | M10: Ativo
C11: FOR004 | D11: Omega Suprimentos | E11: Omega | F11: Material | G11: Belo Horizonte | H11: MG | I11: Ana Rocha | J11: (31) 96666-0004 | K11: ana@omega.com.br | L11: 20 | M11: Inativo | N11: Pendência cadastral

Sheet Solicitações (hidden)
C4: Menu | D4: Fornecedores | E4: Solicitações | F4: Propostas | G4: Cálculos | H4: Relatórios | I4: Instruções
C6: SOLICITAÇÕES DE COTAÇÃO
C7: ID_Cotacao | D7: Data_Abertura | E7: Solicitante | F7: Centro_Custo | G7: Categoria | H7: Item_Servico | I7: Descricao | J7: Quantidade | K7: Unidade | L7: Data_Necessidade | M7: Valor_Referencia | N7: Status_Cotacao | O7: Mes_Referencia | P7: Dias_Ate_Necessidade | Q7: Observacoes
C8: COT0001 | D8: 2026-01-10 | E8: Pedro Alves | F8: CC-100 | G8: Insumo | H8: Papel A4 | I8: Resma papel A4 75g | J8: 500 | K8: un | L8: 2026-02-15 | M8: 15,000.00 | N8: Fechada | O8: =TEXT(D8,"mm/yyyy") -> 01/2026 | P8: =IF(L8="","",L8-TODAY()) -> -179
C9: COT0002 | D9: 2026-02-05 | E9: Lucia Ramos | F9: CC-200 | G9: Serviço | H9: Limpeza predial | I9: Serviço mensal de limpeza | J9: 1 | K9: lote | L9: 2026-03-01 | M9: 8,000.00 | N9: Em análise | O9: =TEXT(D9,"mm/yyyy") -> 02/2026 | P9: =IF(L9="","",L9-TODAY()) -> -165
C10: COT0003 | D10: 2026-03-12 | E10: Pedro Alves | F10: CC-100 | G10: Equipamento | H10: Notebook corporativo | I10: Notebook i5 16GB RAM | J10: 10 | K10: un | L10: 2026-04-30 | M10: 45,000.00 | N10: Aberta | O10: =TEXT(D10,"mm/yyyy") -> 03/2026 | P10: =IF(L10="","",L10-TODAY()) -> -105

Sheet Propostas (hidden)
C4: Menu | D4: Fornecedores | E4: Solicitações | F4: Propostas | G4: Cálculos | H4: Relatórios | I4: Instruções
C6: REGISTRO DE PROPOSTAS
C7: ID_Registro | D7: ID_Cotacao | E7: Data_Recebimento | F7: Fornecedor | G7: Item_Servico | H7: Quantidade | I7: Preco_Unitario | J7: Valor_Frete | K7: Outros_Custos | L7: Valor_Itens | M7: Valor_Total | N7: Prazo_Entrega_Dias | O7: Data_Entrega_Prevista | P7: Validade_Proposta | Q7: Situacao_Validade | R7: Condicao_Pagamento | S7: Selecionada | T7: Menor_Valor_Cotacao | U7: Dif_Pelo_Melhor | V7: Perc_Acima_Melhor | W7: Observacoes
C8: PROP0001 | D8: COT0001 | E8: 2026-01-15 | F8: ABC Materiais | G8: =IFERROR(VLOOKUP(D8,tblSolicitacoes[[ID_Cotacao]:[Item_Servico]],6,FALSE),"") -> Papel A4 | H8: =IFERROR(VLOOKUP(D8,tblSolicitacoes[[ID_Cotacao]:[Quantidade]],8,FALSE),"") -> 500 | I8: 25.00 | J8: 200.00 | K8: 0.00 | L8: =H8*I8 -> 12,500.00 | M8: =L8+J8+K8 -> 12,700.00 | N8: 10.00 | O8: =IF(E8="","",E8+N8) -> 2026-01-25 | P8: 2026-02-15 | Q8: =IF(P8="","",IF(P8>=TODAY(),"Valida","Expirada")) -> Expirada | R8: 28 dias | S8: Sim | T8: =IFERROR(VLOOKUP(D8,tblCalcCotacoes[[ID_Cotacao]:[Menor_Valor_Total]],7,FALSE),"") -> 12,700.00 | U8: =M8-T8 -> 0.00 | V8: =IFERROR(M8/T8-1,0) -> 0.0% | W8: Melhor preço
C9: PROP0002 | D9: COT0001 | E9: 2026-01-16 | F9: Omega | G9: =IFERROR(VLOOKUP(D9,tblSolicitacoes[[ID_Cotacao]:[Item_Servico]],6,FALSE),"") -> Papel A4 | H9: =IFERROR(VLOOKUP(D9,tblSolicitacoes[[ID_Cotacao]:[Quantidade]],8,FALSE),"") -> 500 | I9: 28.00 | J9: 150.00 | K9: 50.00 | L9: 14,000.00 | M9: 14,200.00 | N9: 7.00 | O9: 2026-01-23 | P9: 2026-02-16 | Q9: Expirada | R9: à vista | S9: Não | T9: =IFERROR(VLOOKUP(D9,tblCalcCotacoes[[ID_Cotacao]:[Menor_Valor_Total]],7,FALSE),"") -> 12,700.00 | U9: =M9-T9 -> 1,500.00 | V9: =IFERROR(M9/T9-1,0) -> 11.8%
C10: PROP0003 | D10: COT0002 | E10: 2026-02-10 | F10: XYZ Serviços | G10: =IFERROR(VLOOKUP(D10,tblSolicitacoes[[ID_Cotacao]:[Item_Servico]],6,FALSE),"") -> Limpeza predial | H10: =IFERROR(VLOOKUP(D10,tblSolicitacoes[[ID_Cotacao]:[Quantidade]],8,FALSE),"") -> 1 | I10: 7,200.00 | J10: 0.00 | K10: 0.00 | L10: 7,200.00 | M10: 7,200.00 | N10: 5.00 | O10: 2026-02-15 | P10: 2026-03-10 | Q10: Expirada | R10: 28 dias | S10: Não | T10: =IFERROR(VLOOKUP(D10,tblCalcCotacoes[[ID_Cotacao]:[Menor_Valor_Total]],7,FALSE),"") -> 7,200.00 | U10: =M10-T10 -> 0.00 | V10: =IFERROR(M10/T10-1,0) -> 0.0%
C11: PROP0004 | D11: COT0002 | E11: 2026-02-12 | F11: Delta Log | G11: =IFERROR(VLOOKUP(D11,tblSolicitacoes[[ID_Cotacao]:[Item_Servico]],6,FALSE),"") -> Limpeza predial | H11: =IFERROR(VLOOKUP(D11,tblSolicitacoes[[ID_Cotacao]:[Quantidade]],8,FALSE),"") -> 1 | I11: 7,800.00 | J11: 0.00 | K11: 200.00 | L11: 7,800.00 | M11: 8,000.00 | N11: 3.00 | O11: 2026-02-15 | P11: 2026-03-12 | Q11: Expirada | R11: à vista | S11: Não | T11: =IFERROR(VLOOKUP(D11,tblCalcCotacoes[[ID_Cotacao]:[Menor_Valor_Total]],7,FALSE),"") -> 7,200.00 | U11: =M11-T11 -> 800.00 | V11: =IFERROR(M11/T11-1,0) -> 11.1%
C12: PROP0005 | D12: COT0003 | E12: 2026-03-18 | F12: ABC Materiais | G12: =IFERROR(VLOOKUP(D12,tblSolicitacoes[[ID_Cotacao]:[Item_Servico]],6,FALSE),"") -> Notebook corporativo | H12: =IFERROR(VLOOKUP(D12,tblSolicitacoes[[ID_Cotacao]:[Quantidade]],8,FALSE),"") -> 10 | I12: 4,200.00 | J12: 500.00 | K12: 0.00 | L12: 42,000.00 | M12: 42,500.00 | N12: 15.00 | O12: 2026-04-02 | P12: 2026-04-18 | Q12: Expirada | R12: 28 dias | S12: Não | T12: =IFERROR(VLOOKUP(D12,tblCalcCotacoes[[ID_Cotacao]:[Menor_Valor_Total]],7,FALSE),"") -> 39,900.00 | U12: =M12-T12 -> 2,600.00 | V12: =IFERROR(M12/T12-1,0) -> 6.5%
C13: PROP0006 | D13: COT0003 | E13: 2026-03-20 | F13: Omega | G13: =IFERROR(VLOOKUP(D13,tblSolicitacoes[[ID_Cotacao]:[Item_Servico]],6,FALSE),"") -> Notebook corporativo | H13: =IFERROR(VLOOKUP(D13,tblSolicitacoes[[ID_Cotacao]:[Quantidade]],8,FALSE),"") -> 10 | I13: 3,900.00 | J13: 800.00 | K13: 100.00 | L13: 39,000.00 | M13: 39,900.00 | N13: 20.00 | O13: 2026-04-09 | P13: 2026-04-20 | Q13: Expirada | R13: 30 dias | S13: Não | T13: =IFERROR(VLOOKUP(D13,tblCalcCotacoes[[ID_Cotacao]:[Menor_Valor_Total]],7,FALSE),"") -> 39,900.00 | U13: =M13-T13 -> 0.00 | V13: =IFERROR(M13/T13-1,0) -> 0.0%

Sheet Cálculos (hidden)
C4: Menu | D4: Fornecedores | E4: Solicitações | F4: Propostas | G4: Cálculos | H4: Relatórios | I4: Instruções
C6: CÁLCULOS AUXILIARES — CONSOLIDAÇÃO POR COTAÇÃO | T6: DESEMPENHO POR FORNECEDOR
C7: ID_Cotacao | D7: Data_Abertura | E7: Categoria | F7: Item_Servico | G7: Valor_Referencia | H7: Qtd_Propostas | I7: Menor_Valor_Total | J7: Maior_Valor_Total | K7: Economia_Potencial | L7: Valor_Fechado | M7: Economia_Obtida | N7: Menor_Prazo | O7: Prazo_Fechado | P7: Status_Fechamento | Q7: Alerta_Selecao | T7: Fornecedor | U7: Qtd_Propostas | V7: Qtd_Vitorias | W7: Valor_Fechado | X7: Menor_Preco_Ofertado | Y7: Prazo_Medio_Dias | Z7: Taxa_Conversao
C8: COT0001 | D8: =IFERROR(VLOOKUP(C8,tblSolicitacoes[[ID_Cotacao]:[Data_Abertura]],2,FALSE),"") -> 2026-01-10 | E8: =IFERROR(VLOOKUP(C8,tblSolicitacoes[[ID_Cotacao]:[Categoria]],5,FALSE),"") -> Insumo | F8: =IFERROR(VLOOKUP(C8,tblSolicitacoes[[ID_Cotacao]:[Item_Servico]],6,FALSE),"") -> Papel A4 | G8: =IFERROR(VLOOKUP(C8,tblSolicitacoes[[ID_Cotacao]:[Valor_Referencia]],11,FALSE),0) -> 15,000.00 | H8: =COUNTIFS(tblPropostas[ID_Cotacao],C8) -> 2 | I8: =IFERROR(_xlfn.MINIFS(tblPropostas[Valor_Total],tblPropostas[ID_Cotacao],C8),0) -> 12,700.00 | J8: =IFERROR(_xlfn.MAXIFS(tblPropostas[Valor_Total],tblPropostas[ID_Cotacao],C8),0) -> 14,200.00 | K8: =J8-I8 -> 1,500.00 | L8: =SUMIFS(tblPropostas[Valor_Total],tblPropostas[ID_Cotacao],C8,tblPropostas[Selecionada],"Sim") -> 12,700.00 | M8: =IF(L8=0,0,G8-L8) -> 2,300.00 | N8: =IFERROR(_xlfn.MINIFS(tblPropostas[Prazo_Entrega_Dias],tblPropostas[ID_Cotacao],C8),0) -> 7 | O8: =SUMIFS(tblPropostas[Prazo_Entrega_Dias],tblPropostas[ID_Cotacao],C8,tblPropostas[Selecionada],"Sim") -> 10 | P8: =IF(L8>0,"Fechada","Em cotacao") -> Fechada | Q8: =IF(COUNTIFS(tblPropostas[ID_Cotacao],C8,tblPropostas[Selecionada],"Sim")>1,"Verificar","OK") -> OK | T8: ABC Materiais | U8: =COUNTIFS(tblPropostas[Fornecedor],T8) -> 2 | V8: =COUNTIFS(tblPropostas[Fornecedor],T8,tblPropostas[Selecionada],"Sim") -> 1 | W8: =SUMIFS(tblPropostas[Valor_Total],tblPropostas[Fornecedor],T8,tblPropostas[Selecionada],"Sim") -> 12,700.00 | X8: =IFERROR(_xlfn.MINIFS(tblPropostas[Valor_Total],tblPropostas[Fornecedor],T8),0) -> 12,700.00 | Y8: =IFERROR(AVERAGEIFS(tblPropostas[Prazo_Entrega_Dias],tblPropostas[Fornecedor],T8),0) -> 12.5 | Z8: =IFERROR(V8/U8,0) -> 50.0%
C9: COT0002 | D9: =IFERROR(VLOOKUP(C9,tblSolicitacoes[[ID_Cotacao]:[Data_Abertura]],2,FALSE),"") -> 2026-02-05 | E9: =IFERROR(VLOOKUP(C9,tblSolicitacoes[[ID_Cotacao]:[Categoria]],5,FALSE),"") -> Serviço | F9: =IFERROR(VLOOKUP(C9,tblSolicitacoes[[ID_Cotacao]:[Item_Servico]],6,FALSE),"") -> Limpeza predial | G9: =IFERROR(VLOOKUP(C9,tblSolicitacoes[[ID_Cotacao]:[Valor_Referencia]],11,FALSE),0) -> 8,000.00 | H9: =COUNTIFS(tblPropostas[ID_Cotacao],C9) -> 2 | I9: =IFERROR(_xlfn.MINIFS(tblPropostas[Valor_Total],tblPropostas[ID_Cotacao],C9),0) -> 7,200.00 | J9: =IFERROR(_xlfn.MAXIFS(tblPropostas[Valor_Total],tblPropostas[ID_Cotacao],C9),0) -> 8,000.00 | K9: =J9-I9 -> 800.00 | L9: =SUMIFS(tblPropostas[Valor_Total],tblPropostas[ID_Cotacao],C9,tblPropostas[Selecionada],"Sim") -> 0.00 | M9: =IF(L9=0,0,G9-L9) -> 0.00 | N9: =IFERROR(_xlfn.MINIFS(tblPropostas[Prazo_Entrega_Dias],tblPropostas[ID_Cotacao],C9),0) -> 3 | O9: =SUMIFS(tblPropostas[Prazo_Entrega_Dias],tblPropostas[ID_Cotacao],C9,tblPropostas[Selecionada],"Sim") -> 0 | P9: =IF(L9>0,"Fechada","Em cotacao") -> Em cotacao | Q9: =IF(COUNTIFS(tblPropostas[ID_Cotacao],C9,tblPropostas[Selecionada],"Sim")>1,"Verificar","OK") -> OK | T9: Omega | U9: =COUNTIFS(tblPropostas[Fornecedor],T9) -> 2 | V9: =COUNTIFS(tblPropostas[Fornecedor],T9,tblPropostas[Selecionada],"Sim") -> 0 | W9: =SUMIFS(tblPropostas[Valor_Total],tblPropostas[Fornecedor],T9,tblPropostas[Selecionada],"Sim") -> 0.00 | X9: =IFERROR(_xlfn.MINIFS(tblPropostas[Valor_Total],tblPropostas[Fornecedor],T9),0) -> 14,200.00 | Y9: =IFERROR(AVERAGEIFS(tblPropostas[Prazo_Entrega_Dias],tblPropostas[Fornecedor],T9),0) -> 13.5 | Z9: =IFERROR(V9/U9,0) -> 0.0%
C10: COT0003 | D10: =IFERROR(VLOOKUP(C10,tblSolicitacoes[[ID_Cotacao]:[Data_Abertura]],2,FALSE),"") -> 2026-03-12 | E10: =IFERROR(VLOOKUP(C10,tblSolicitacoes[[ID_Cotacao]:[Categoria]],5,FALSE),"") -> Equipamento | F10: =IFERROR(VLOOKUP(C10,tblSolicitacoes[[ID_Cotacao]:[Item_Servico]],6,FALSE),"") -> Notebook corporativo | G10: =IFERROR(VLOOKUP(C10,tblSolicitacoes[[ID_Cotacao]:[Valor_Referencia]],11,FALSE),0) -> 45,000.00 | H10: =COUNTIFS(tblPropostas[ID_Cotacao],C10) -> 2 | I10: =IFERROR(_xlfn.MINIFS(tblPropostas[Valor_Total],tblPropostas[ID_Cotacao],C10),0) -> 39,900.00 | J10: =IFERROR(_xlfn.MAXIFS(tblPropostas[Valor_Total],tblPropostas[ID_Cotacao],C10),0) -> 42,500.00 | K10: =J10-I10 -> 2,600.00 | L10: =SUMIFS(tblPropostas[Valor_Total],tblPropostas[ID_Cotacao],C10,tblPropostas[Selecionada],"Sim") -> 0.00 | M10: =IF(L10=0,0,G10-L10) -> 0.00 | N10: =IFERROR(_xlfn.MINIFS(tblPropostas[Prazo_Entrega_Dias],tblPropostas[ID_Cotacao],C10),0) -> 15 | O10: =SUMIFS(tblPropostas[Prazo_Entrega_Dias],tblPropostas[ID_Cotacao],C10,tblPropostas[Selecionada],"Sim") -> 0 | P10: =IF(L10>0,"Fechada","Em cotacao") -> Em cotacao | Q10: =IF(COUNTIFS(tblPropostas[ID_Cotacao],C10,tblPropostas[Selecionada],"Sim")>1,"Verificar","OK") -> OK | T10: XYZ Serviços | U10: =COUNTIFS(tblPropostas[Fornecedor],T10) -> 1 | V10: =COUNTIFS(tblPropostas[Fornecedor],T10,tblPropostas[Selecionada],"Sim") -> 0 | W10: =SUMIFS(tblPropostas[Valor_Total],tblPropostas[Fornecedor],T10,tblPropostas[Selecionada],"Sim") -> 0.00 | X10: =IFERROR(_xlfn.MINIFS(tblPropostas[Valor_Total],tblPropostas[Fornecedor],T10),0) -> 7,200.00 | Y10: =IFERROR(AVERAGEIFS(tblPropostas[Prazo_Entrega_Dias],tblPropostas[Fornecedor],T10),0) -> 5.0 | Z10: =IFERROR(V10/U10,0) -> 0.0%
T11: Delta Log | U11: =COUNTIFS(tblPropostas[Fornecedor],T11) -> 1 | V11: =COUNTIFS(tblPropostas[Fornecedor],T11,tblPropostas[Selecionada],"Sim") -> 0 | W11: =SUMIFS(tblPropostas[Valor_Total],tblPropostas[Fornecedor],T11,tblPropostas[Selecionada],"Sim") -> 0.00 | X11: =IFERROR(_xlfn.MINIFS(tblPropostas[Valor_Total],tblPropostas[Fornecedor],T11),0) -> 8,000.00 | Y11: =IFERROR(AVERAGEIFS(tblPropostas[Prazo_Entrega_Dias],tblPropostas[Fornecedor],T11),0) -> 3.0 | Z11: =IFERROR(V11/U11,0) -> 0.0%

Sheet Relatórios (hidden)
C4: Menu | D4: Fornecedores | E4: Solicitações | F4: Propostas | G4: Cálculos | H4: Relatórios | I4: Instruções
C6: RELATÓRIOS GERENCIAIS
C8: Total de Cotações | D8: Fechadas | E8: Em Cotação | F8: Total Propostas | G8: Economia Potencial | H8: Economia Obtida | I8: Prazo Médio Fechado
C9: =COUNTA(tblCalcCotacoes[ID_Cotacao]) -> 3 | D9: =COUNTIFS(tblCalcCotacoes[Status_Fechamento],"Fechada") -> 1 | E9: =COUNTIFS(tblCalcCotacoes[Status_Fechamento],"Em cotacao") -> 2 | F9: =SUM(tblCalcCotacoes[Qtd_Propostas]) -> 6 | G9: =SUM(tblCalcCotacoes[Economia_Potencial]) -> 4,900 | H9: =SUM(tblCalcCotacoes[Economia_Obtida]) -> 2,300 | I9: =IFERROR(AVERAGEIFS(tblCalcCotacoes[Prazo_Fechado],tblCalcCotacoes[Prazo_Fechado],">0"),0) -> 10.0
C11: A. RESUMO GERAL
C12: Indicador | D12: Valor
C13: Total de cotações | D13: =COUNTA(tblCalcCotacoes[ID_Cotacao]) -> 3
C14: Cotações fechadas | D14: =COUNTIFS(tblCalcCotacoes[Status_Fechamento],"Fechada") -> 1
C15: Cotações em aberto | D15: =COUNTIFS(tblCalcCotacoes[Status_Fechamento],"Em cotacao") -> 2
C16: Média de propostas por cotação | D16: =IFERROR(AVERAGE(tblCalcCotacoes[Qtd_Propostas]),0) -> 2.0
C17: Total da economia obtida | D17: =SUM(tblCalcCotacoes[Economia_Obtida]) -> 2,300.00
C18: Total da economia potencial | D18: =SUM(tblCalcCotacoes[Economia_Potencial]) -> 4,900.00
C20: B. RANKING DE FORNECEDORES
C21: Fornecedor | D21: Propostas | E21: Vitórias | F21: Taxa Conversão | G21: Prazo Médio | H21: Valor Fechado
C22: =Cálculos!T8 -> ABC Materiais | D22: =Cálculos!U8 -> 2 | E22: =Cálculos!V8 -> 1 | F22: =Cálculos!Z8 -> 50.0% | G22: =Cálculos!Y8 -> 12.5 | H22: =Cálculos!W8 -> 12,700.00
C23: =Cálculos!T9 -> Omega | D23: =Cálculos!U9 -> 2 | E23: =Cálculos!V9 -> 0 | F23: =Cálculos!Z9 -> 0.0% | G23: =Cálculos!Y9 -> 13.5 | H23: =Cálculos!W9 -> 0.00
C24: =Cálculos!T10 -> XYZ Serviços | D24: =Cálculos!U10 -> 1 | E24: =Cálculos!V10 -> 0 | F24: =Cálculos!Z10 -> 0.0% | G24: =Cálculos!Y10 -> 5.0 | H24: =Cálculos!W10 -> 0.00
C25: =Cálculos!T11 -> Delta Log | D25: =Cálculos!U11 -> 1 | E25: =Cálculos!V11 -> 0 | F25: =Cálculos!Z11 -> 0.0% | G25: =Cálculos!Y11 -> 3.0 | H25: =Cálculos!W11 -> 0.00
C27: C. COTAÇÕES COM MAIOR ECONOMIA
C28: ID_Cotacao | D28: Item/Serviço | E28: Valor Referência | F28: Valor Fechado | G28: Economia Obtida
C29: =Cálculos!C8 -> COT0001 | D29: =Cálculos!F8 -> Papel A4 | E29: =Cálculos!G8 -> 15,000.00 | F29: =Cálculos!L8 -> 12,700.00 | G29: =Cálculos!M8 -> 2,300.00
C30: =Cálculos!C9 -> COT0002 | D30: =Cálculos!F9 -> Limpeza predial | E30: =Cálculos!G9 -> 8,000.00 | F30: =Cálculos!L9 -> 0.00 | G30: =Cálculos!M9 -> 0.00
C31: =Cálculos!C10 -> COT0003 | D31: =Cálculos!F10 -> Notebook corporativo | E31: =Cálculos!G10 -> 45,000.00 | F31: =Cálculos!L10 -> 0.00 | G31: =Cálculos!M10 -> 0.00
C33: D. ACOMPANHAMENTO POR STATUS
C34: Status | D34: Quantidade
C35: Em cotação | D35: =COUNTIFS(tblCalcCotacoes[Status_Fechamento],"Em cotacao") -> 2
C36: Fechadas | D36: =COUNTIFS(tblCalcCotacoes[Status_Fechamento],"Fechada") -> 1
C37: Com alerta de seleção | D37: =COUNTIFS(tblCalcCotacoes[Alerta_Selecao],"Verificar") -> 0
J39: Fornecedor | K39: Valor Fechado
J40: =C22 -> ABC Materiais | K40: =H22 -> 12700
J41: =C23 -> Omega | K41: =H23 -> 0
J42: =C24 -> XYZ Serviços | K42: =H24 -> 0
J43: =C25 -> Delta Log | K43: =H25 -> 0
J45: Cotação | K45: Economia Obtida
J46: =C29 -> COT0001 | K46: =G29 -> 2300
J47: =C30 -> COT0002 | K47: =G30 -> 0
J48: =C31 -> COT0003 | K48: =G31 -> 0
